fUST/lending_fUST_20260628
["ID","MTS","AMOUNT","RATE_DAILY","PERIOD"]
[426546384,1782577842000,-1031.233958,0.0003168,7]
[426546348,1782577842000,-151.0,0.0003168,7]
[426546369,1782577842000,-368.855767,0.0003168,7]
[426546353,1782577842000,-151.0,0.0003168,7]
[426546326,1782577842000,-151.0,0.0003168,7]
[426546354,1782577842000,-151.0,0.0003168,7]
[426546386,1782577842000,-1031.233958,0.0003168,7]
[426546325,1782577842000,-477.35,0.0003168,7]
[426546329,1782577842000,-214.435039,0.0003168,7]
[426546322,1782577842000,-477.35,0.0003168,7]
[426546323,1782577842000,-151.0,0.0003168,7]
[426546324,1782577842000,-479.928685,0.0003168,7]
[426546327,1782577842000,-479.928685,0.0003168,7]
[426546330,1782577842000,-479.928685,0.0003168,7]
[426546328,1782577842000,-477.35,0.0003168,7]
[426546331,1782577842000,-477.35,0.0003168,7]
[426546332,1782577842000,-477.35,0.0003168,7]
[426546341,1782577842000,-477.35,0.0003168,7]
[426546338,1782577842000,-479.928685,0.0003168,7]
[426546337,1782577842000,-477.35,0.0003168,7]
[426546336,1782577842000,-479.928685,0.0003168,7]
[426546333,1782577842000,-477.35,0.0003168,7]
[426546340,1782577842000,-477.35,0.0003168,7]
[426546334,1782577842000,-479.928685,0.0003168,7]
[426546339,1782577842000,-479.928685,0.0003168,7]
[426546335,1782577842000,-477.35,0.0003168,7]
[426546342,1782577842000,-479.928685,0.0003168,7]
[426546343,1782577842000,-477.35,0.0003168,7]
[426546344,1782577842000,-479.928685,0.0003168,7]
[426546346,1782577842000,-479.92867863,0.0003168,7]
[426546351,1782577842000,-151.0,0.0003168,7]
[426546345,1782577842000,-477.35,0.0003168,7]
[426546347,1782577842000,-151.0,0.0003168,7]
[426546350,1782577842000,-151.0,0.0003168,7]
[426546355,1782577842000,-151.0,0.0003168,7]
[426546349,1782577842000,-151.0,0.0003168,7]
[426546390,1782577842000,-151.0,0.0003168,7]
[426546431,1782577842000,-785.696151,0.0003168,7]
[426546389,1782577842000,-1031.233958,0.0003168,7]
[426546430,1782577842000,-785.696151,0.0003168,7]
[426546434,1782577842000,-785.696151,0.0003168,7]
[426546435,1782577842000,-785.696151,0.0003168,7]
[426546436,1782577842000,-785.696151,0.0003168,7]
[426546437,1782577842000,-785.696151,0.0003168,7]
[426546441,1782577842000,-167.316636,0.0003168,7]
[426546438,1782577842000,-785.69615,0.0003168,7]
[426546443,1782577842000,-167.316636,0.0003168,7]
[426546439,1782577842000,-167.316636,0.0003168,7]
[426546444,1782577842000,-167.316636,0.0003168,7]
[426546446,1782577842000,-167.316636,0.0003168,7]
[426546440,1782577842000,-167.316636,0.0003168,7]
[426546442,1782577842000,-167.316636,0.0003168,7]
[426546433,1782577842000,-785.696151,0.0003168,7]
[426546445,1782577842000,-167.316636,0.0003168,7]
[426546448,1782577842000,-167.316636,0.0003168,7]
[426546450,1782577842000,-167.316636,0.0003168,7]
[426546451,1782577842000,-167.316636,0.0003168,7]
[426546452,1782577842000,-167.316636,0.0003168,7]
[426546458,1782577842000,-167.316635,0.0003168,7]
[426546449,1782577842000,-167.316636,0.0003168,7]
[426546457,1782577842000,-167.316636,0.0003168,7]
[426546456,1782577842000,-167.316636,0.0003168,7]
[426546453,1782577842000,-167.316636,0.0003168,7]
[426546454,1782577842000,-167.316636,0.0003168,7]
[426546455,1782577842000,-167.316636,0.0003168,7]
[426546460,1782577842000,-151.0,0.0003168,7]
[426546385,1782577842000,-1031.233958,0.0003168,7]
[426546447,1782577842000,-167.316636,0.0003168,7]
[426546429,1782577842000,-785.696151,0.0003168,7]
[426546459,1782577842000,-151.0,0.0003168,7]
[426546428,1782577842000,-785.696151,0.0003168,7]
[426546461,1782577842000,-151.0,0.0003168,7]
[426546394,1782577842000,-1031.233958,0.0003168,7]
[426546396,1782577842000,-1031.233958,0.0003168,7]
[426546387,1782577842000,-1031.233958,0.0003168,7]
[426546393,1782577842000,-151.0,0.0003168,7]
[426546391,1782577842000,-151.0,0.0003168,7]
[426546388,1782577842000,-1031.233958,0.0003168,7]
[426546395,1782577842000,-176.611737,0.0003168,7]
[426546397,1782577842000,-1031.233958,0.0003168,7]
[426546399,1782577842000,-1031.233958,0.0003168,7]
[426546400,1782577842000,-1031.233958,0.0003168,7]
[426546398,1782577842000,-1031.233958,0.0003168,7]
[426546410,1782577842000,-1031.233958,0.0003168,7]
[426546401,1782577842000,-1031.233958,0.0003168,7]
[426546392,1782577842000,-1031.233958,0.0003168,7]
[426546417,1782577842000,-785.696151,0.0003168,7]
[426546414,1782577842000,-785.696151,0.0003168,7]
[426546427,1782577842000,-785.696151,0.0003168,7]
[426546426,1782577842000,-785.696151,0.0003168,7]
[426546420,1782577842000,-785.696151,0.0003168,7]
[426546422,1782577842000,-785.696151,0.0003168,7]
[426546419,1782577842000,-785.696151,0.0003168,7]
[426546424,1782577842000,-785.696151,0.0003168,7]
[426546415,1782577842000,-785.696151,0.0003168,7]
[426546404,1782577842000,-1031.233958,0.0003168,7]
[426546412,1782577842000,-1031.233962,0.0003168,7]
[426546407,1782577842000,-1031.233958,0.0003168,7]
[426546402,1782577842000,-1031.233958,0.0003168,7]
[426546432,1782577842000,-785.696151,0.0003168,7]
[426546403,1782577842000,-1031.233958,0.0003168,7]
[426546491,1782577843000,-695.158613,0.0003168,7]
[426546492,1782577843000,-695.158613,0.0003168,7]
[426546488,1782577843000,-695.158613,0.0003168,7]
[426546498,1782577843000,-695.158613,0.0003168,7]
[426546497,1782577843000,-695.158613,0.0003168,7]
[426546489,1782577843000,-695.158613,0.0003168,7]
[426546496,1782577843000,-695.158613,0.0003168,7]
[426546490,1782577843000,-695.158613,0.0003168,7]
[426546495,1782577843000,-695.158613,0.0003168,7]
[426546510,1782577843000,-1062.074151,0.0003168,7]
[426546494,1782577843000,-695.158613,0.0003168,7]
[426546505,1782577843000,-1062.074151,0.0003168,7]
[426546512,1782577843000,-1062.074151,0.0003168,7]
[426546499,1782577843000,-695.158613,0.0003168,7]
[426546503,1782577843000,-695.158613,0.0003168,7]
[426546509,1782577843000,-1062.074151,0.0003168,7]
[426546507,1782577843000,-1062.074151,0.0003168,7]
[426546501,1782577843000,-695.158613,0.0003168,7]
[426546502,1782577843000,-695.158613,0.0003168,7]
[426546506,1782577843000,-1062.074151,0.0003168,7]
[426546508,1782577843000,-1062.074151,0.0003168,7]
[426546493,1782577843000,-695.158613,0.0003168,7]
[426546504,1782577843000,-695.158611,0.0003168,7]
[426546500,1782577843000,-695.158613,0.0003168,7]
[426546487,1782577843000,-695.158613,0.0003168,7]
[426546471,1782577843000,-1585.056185,0.0003168,7]
[426546484,1782577843000,-695.158613,0.0003168,7]
[426546513,1782577843000,-1062.074151,0.0003168,7]
[426546463,1782577843000,-151.0,0.0003168,7]
[426546464,1782577843000,-295.997408,0.0003168,7]
[426546465,1782577843000,-1585.056185,0.0003168,7]
[426546467,1782577843000,-1585.056185,0.0003168,7]
[426546473,1782577843000,-1585.056185,0.0003168,7]
[426546462,1782577843000,-161.733068,0.0003168,7]
[426546469,1782577843000,-1585.056185,0.0003168,7]
[426546468,1782577843000,-1585.056185,0.0003168,7]
[426546472,1782577843000,-1585.056185,0.0003168,7]
[426546466,1782577843000,-1585.056185,0.0003168,7]
[426546470,1782577843000,-1585.056185,0.0003168,7]
[426546474,1782577843000,-1585.056185,0.0003168,7]
[426546475,1782577843000,-1585.056185,0.0003168,7]
[426546477,1782577843000,-1585.056185,0.0003168,7]
[426546486,1782577843000,-695.158613,0.0003168,7]
[426546478,1782577843000,-1585.056185,0.0003168,7]
[426546479,1782577843000,-1585.056185,0.0003168,7]
[426546476,1782577843000,-1585.056185,0.0003168,7]
[426546481,1782577843000,-1585.056185,0.0003168,7]
[426546480,1782577843000,-1585.056185,0.0003168,7]
[426546483,1782577843000,-1585.056185,0.0003168,7]
[426546485,1782577843000,-1585.056178,0.0003168,7]
[426546482,1782577843000,-1585.056185,0.0003168,7]
[426546515,1782577843000,-1062.074151,0.0003168,7]
[426546521,1782577843000,-1062.074151,0.0003168,7]
[426546519,1782577843000,-1062.074151,0.0003168,7]
[426546553,1782577843000,-250.686111,0.0003168,7]
[426546552,1782577843000,-250.686111,0.0003168,7]
[426546554,1782577843000,-250.686111,0.0003168,7]
[426546558,1782577843000,-190.028637,0.0003168,7]
[426546556,1782577843000,-151.0,0.0003168,7]
[426546559,1782577843000,-262.494605,0.0003168,7]
[426546555,1782577843000,-250.686117,0.0003168,7]
[426546557,1782577843000,-151.0,0.0003168,7]
[426546564,1782577843000,-262.494605,0.0003168,7]
[426546574,1782577843000,-262.494605,0.0003168,7]
[426546575,1782577843000,-262.494605,0.0003168,7]
[426546576,1782577843000,-262.494605,0.0003168,7]
[426546565,1782577843000,-262.494605,0.0003168,7]
[426546566,1782577843000,-262.494605,0.0003168,7]
[426546572,1782577843000,-262.494605,0.0003168,7]
[426546567,1782577843000,-262.494605,0.0003168,7]
[426546569,1782577843000,-262.494605,0.0003168,7]
[426546568,1782577843000,-262.494605,0.0003168,7]
[426546571,1782577843000,-262.494605,0.0003168,7]
[426546573,1782577843000,-262.494605,0.0003168,7]
[426546570,1782577843000,-262.494605,0.0003168,7]
[426546577,1782577843000,-262.494605,0.0003168,7]
[426546517,1782577843000,-1062.074151,0.0003168,7]
[426546551,1782577843000,-250.686111,0.0003168,7]
[426546550,1782577843000,-250.686111,0.0003168,7]
[426546563,1782577843000,-262.494605,0.0003168,7]
[426546560,1782577843000,-262.494605,0.0003168,7]
[426546561,1782577843000,-262.494605,0.0003168,7]
[426546535,1782577843000,-1062.074144,0.0003168,7]
[426546525,1782577843000,-1062.074151,0.0003168,7]
[426546523,1782577843000,-1062.074151,0.0003168,7]
[426546528,1782577843000,-1062.074151,0.0003168,7]
[426546530,1782577843000,-1062.074151,0.0003168,7]
[426546536,1782577843000,-250.686111,0.0003168,7]
[426546534,1782577843000,-1062.074151,0.0003168,7]
[426546527,1782577843000,-1062.074151,0.0003168,7]
[426546540,1782577843000,-250.686111,0.0003168,7]
[426546537,1782577843000,-250.686111,0.0003168,7]
[426546541,1782577843000,-250.686111,0.0003168,7]
[426546532,1782577843000,-1062.074151,0.0003168,7]
[426546542,1782577843000,-250.686111,0.0003168,7]
[426546544,1782577843000,-250.686111,0.0003168,7]
[426546539,1782577843000,-250.686111,0.0003168,7]
[426546543,1782577843000,-250.686111,0.0003168,7]
[426546538,1782577843000,-250.686111,0.0003168,7]
[426546546,1782577843000,-250.686111,0.0003168,7]
[426546548,1782577843000,-250.686111,0.0003168,7]
[426546545,1782577843000,-250.686111,0.0003168,7]
[426546547,1782577843000,-250.686111,0.0003168,7]
[426546549,1782577843000,-250.686111,0.0003168,7]
[426546562,1782577843000,-262.494605,0.0003168,7]
[426546622,1782577844000,-151.0,0.0003168,7]
[426546617,1782577844000,-151.0,0.0003168,7]
[426546618,1782577844000,-151.0,0.0003168,7]
[426546615,1782577844000,-151.0,0.0003168,7]
[426546614,1782577844000,-151.0,0.0003168,7]
[426546608,1782577844000,-151.0,0.0003168,7]
[426546611,1782577844000,-151.0,0.0003168,7]
[426546604,1782577844000,-171.799012,0.0003168,7]
[426546610,1782577844000,-151.0,0.0003168,7]
[426546607,1782577844000,-189.146994,0.0003168,7]
[426546623,1782577844000,-257.109538,0.0003168,7]
[426546613,1782577844000,-151.0,0.0003168,7]
[426546616,1782577844000,-151.0,0.0003168,7]
[426546631,1782577844000,-478.674324,0.0003168,7]
[426546620,1782577844000,-151.0,0.0003168,7]
[426546621,1782577844000,-151.0,0.0003168,7]
[426546624,1782577844000,-478.674324,0.0003168,7]
[426546627,1782577844000,-478.674324,0.0003168,7]
[426546626,1782577844000,-478.674324,0.0003168,7]
[426546625,1782577844000,-478.674324,0.0003168,7]
[426546632,1782577844000,-151.0,0.0003168,7]
[426546633,1782577844000,-478.674324,0.0003168,7]
[426546630,1782577844000,-151.0,0.0003168,7]
[426546628,1782577844000,-478.674324,0.0003168,7]
[426546634,1782577844000,-151.0,0.0003168,7]
[426546605,1782577844000,-151.0,0.0003168,7]
[426546619,1782577844000,-151.0,0.0003168,7]
[426546612,1782577844000,-151.0,0.0003168,7]
[426546580,1782577844000,-534.631902,0.0003168,7]
[426546609,1782577844000,-151.0,0.0003168,7]
[426546636,1782577844000,-151.0,0.0003168,7]
[426546579,1782577844000,-534.631902,0.0003168,7]
[426546583,1782577844000,-534.631902,0.0003168,7]
[426546584,1782577844000,-534.631902,0.0003168,7]
[426546582,1782577844000,-534.631902,0.0003168,7]
[426546587,1782577844000,-534.631902,0.0003168,7]
[426546581,1782577844000,-534.631902,0.0003168,7]
[426546588,1782577844000,-534.631902,0.0003168,7]
[426546578,1782577844000,-262.494608,0.0003168,7]
[426546586,1782577844000,-534.631902,0.0003168,7]
[426546585,1782577844000,-534.631902,0.0003168,7]
[426546590,1782577844000,-534.631902,0.0003168,7]
[426546603,1782577844000,-151.0,0.0003168,7]
[426546600,1782577844000,-151.0,0.0003168,7]
[426546591,1782577844000,-534.631902,0.0003168,7]
[426546593,1782577844000,-534.631902,0.0003168,7]
[426546594,1782577844000,-534.631902,0.0003168,7]
[426546592,1782577844000,-534.631902,0.0003168,7]
[426546589,1782577844000,-534.631902,0.0003168,7]
[426546597,1782577844000,-534.631902,0.0003168,7]
[426546596,1782577844000,-534.631902,0.0003168,7]
[426546598,1782577844000,-534.631901,0.0003168,7]
[426546599,1782577844000,-151.0,0.0003168,7]
[426546595,1782577844000,-534.631902,0.0003168,7]
[426546602,1782577844000,-151.0,0.0003168,7]
[426546606,1782577844000,-151.0,0.0003168,7]
[426546601,1782577844000,-151.0,0.0003168,7]
[426546646,1782577844000,-478.674324,0.0003168,7]
[426546629,1782577844000,-478.674324,0.0003168,7]
[426546635,1782577844000,-478.674324,0.0003168,7]
[426546668,1782577844000,-377.08,0.0003304,3]
[426546669,1782577844000,-151.0,0.00033178,2]
[426546670,1782577844000,-181.148048,0.00033221,2]
[426546672,1782577844000,-543.3,0.00033299,3]
[426546673,1782577844000,-58260.512654,0.000333,2]
[426546674,1782577844000,-2000.0,0.0003333,2]
[426546679,1782577844000,-734658.61035265,0.00033333,2]
[426546683,1782577844000,-151.0,0.00034,2]
[426546675,1782577844000,-2000.0,0.0003333,2]
[426546681,1782577844000,-151.0,0.00033507,2]
[426546682,1782577844000,-403.00870939,0.00033551,2]
[426546678,1782577844000,-2000.0,0.0003333,2]
[426546665,1782577844000,-14124.57133854,0.00032866,2]
[426546676,1782577844000,-2000.0,0.0003333,2]
[426546680,1782577844000,-54418.24631368,0.00033333,2]
[426546695,1782577844000,-150.61086682,0.0003444,2]
[426546685,1782577844000,-151.0,0.00034384,2]
[426546684,1782577844000,-151.0,0.00034329,2]
[426546692,1782577844000,-153.75904557,0.0003444,2]
[426546690,1782577844000,-194.94442427,0.0003444,2]
[426546686,1782577844000,-209.10340099,0.00034435,2]
[426546694,1782577844000,-158.26930183,0.0003444,2]
[426546687,1782577844000,-509.82064706,0.0003444,2]
[426546688,1782577844000,-312.45113707,0.0003444,2]
[426546693,1782577844000,-177.14492626,0.0003444,2]
[426546689,1782577844000,-719.55673373,0.0003444,2]
[426546677,1782577844000,-2000.0,0.0003333,2]
[426546666,1782577844000,-151.0,0.00033014,2]
[426546647,1782577844000,-478.674324,0.0003168,7]
[426546664,1782577844000,-713.69559648,0.00032846,7]
[426546667,1782577844000,-754.14,0.0003304,3]
[426546637,1782577844000,-478.674324,0.0003168,7]
[426546638,1782577844000,-151.0,0.0003168,7]
[426546639,1782577844000,-478.674324,0.0003168,7]
[426546640,1782577844000,-151.0,0.0003168,7]
[426546641,1782577844000,-478.674324,0.0003168,7]
[426546642,1782577844000,-151.0,0.0003168,7]
[426546691,1782577844000,-179.45127271,0.0003444,2]
[426546645,1782577844000,-478.674324,0.0003168,7]
[426546643,1782577844000,-478.674324,0.0003168,7]
[426546649,1782577844000,-478.674324,0.0003168,7]
[426546659,1782577844000,-438.46215496,0.00032269,7]
[426546648,1782577844000,-478.674324,0.0003168,7]
[426546644,1782577844000,-267.037782,0.0003168,7]
[426546658,1782577844000,-272.82439956,0.00032254,7]
[426546650,1782577844000,-478.674324,0.0003168,7]
[426546662,1782577844000,-196.24260714,0.000328,120]
[426546660,1782577844000,-151.0,0.00032356,2]
[426546671,1782577844000,-1027.60133424,0.00033247,15]
[426546651,1782577844000,-478.674331,0.0003168,7]
[426546655,1782577844000,-196.24260714,0.000318,120]
[426546661,1782577844000,-1000.0,0.000328,26]
[426546663,1782577844000,-640.66777179,0.00032815,2]
[426546654,1782577844000,-167.995513,0.0003171,2]
[426546653,1782577844000,-690.545932,0.0003168,7]
[426546657,1782577844000,-300.0,0.00032142,2]
[426546652,1782577844000,-690.545932,0.0003168,7]
[426546656,1782577844000,-186.0,0.00032098,2]
[426546745,1782577845000,-242.13870182,0.00035443,2]
[426546738,1782577845000,-316.53860367,0.00035443,2]
[426546736,1782577845000,-206.04740655,0.00035443,2]
[426546734,1782577845000,-389.88884853,0.00035443,2]
[426546746,1782577845000,-340.65680939,0.00035443,2]
[426546726,1782577845000,-184.153387,0.00035391,2]
[426546725,1782577845000,-1801.447981,0.00035389,2]
[426546724,1782577845000,-949.843786,0.00035389,2]
[426546730,1782577845000,-1019.64129412,0.00035443,2]
[426546731,1782577845000,-624.90227414,0.00035443,2]
[426546743,1782577845000,-400.85592576,0.00035443,2]
[426546735,1782577845000,-358.90254542,0.00035443,2]
[426546744,1782577845000,-371.27130993,0.00035443,2]
[426546754,1782577845000,-335.61657275,0.00035443,2]
[426546737,1782577845000,-307.51809114,0.00035443,2]
[426546740,1782577845000,-328.90393013,0.00035443,2]
[426546742,1782577845000,-217.32407736,0.00035443,2]
[426546741,1782577845000,-302.78229632,0.00035443,2]
[426546747,1782577845000,-305.24381147,0.00035443,2]
[426546750,1782577845000,-301.86974055,0.00035443,2]
[426546749,1782577845000,-311.64432694,0.00035443,2]
[426546752,1782577845000,-308.99687999,0.00035443,2]
[426546756,1782577845000,-220.13926925,0.00035444,2]
[426546753,1782577845000,-325.73828852,0.00035443,2]
[426546748,1782577845000,-626.92,0.00035443,2]
[426546751,1782577845000,-392.27659162,0.00035443,2]
[426546723,1782577845000,-1054.52127399,0.00035282,2]
[426546739,1782577845000,-301.22173365,0.00035443,2]
[426546728,1782577845000,-204.83389531,0.00035435,2]
[426546709,1782577845000,-156.57931919,0.00034442,2]
[426546732,1782577845000,-1439.11346746,0.00035443,2]
[426546696,1782577845000,-164.45196506,0.0003444,2]
[426546758,1782577845000,-322.44885269,0.00035445,2]
[426546699,1782577845000,-185.63565497,0.00034441,2]
[426546700,1782577845000,-170.32840469,0.00034441,2]
[426546707,1782577845000,-167.80828637,0.00034441,2]
[426546701,1782577845000,-152.62190573,0.00034441,2]
[426546708,1782577845000,-154.18185018,0.00034441,2]
[426546703,1782577845000,-150.93487028,0.00034441,2]
[426546706,1782577845000,-162.86914426,0.00034441,2]
[426546704,1782577845000,-196.13829581,0.00034441,2]
[426546698,1782577845000,-200.42796288,0.00034441,2]
[426546705,1782577845000,-154.49844,0.00034441,2]
[426546702,1782577845000,-155.82216347,0.00034441,2]
[426546727,1782577845000,-511.01544229,0.00035435,2]
[426546710,1782577845000,-161.22442635,0.00034442,2]
[426546720,1782577845000,-151.0,0.00035205,2]
[426546711,1782577845000,-151.0,0.00034493,2]
[426546717,1782577845000,-300.0,0.00034946,37]
[426546713,1782577845000,-14124.57133854,0.000347,2]
[426546715,1782577845000,-151.0,0.00034822,2]
[426546716,1782577845000,-151.0,0.00034822,2]
[426546712,1782577845000,-151.0,0.00034548,2]
[426546714,1782577845000,-165.909088,0.00034734,2]
[426546718,1782577845000,-186.0,0.00035098,2]
[426546719,1782577845000,-151.0,0.00035151,2]
[426546722,1782577845000,-151.0,0.00035205,2]
[426546729,1782577845000,-418.20680199,0.00035437,2]
[426546733,1782577845000,-219.06880428,0.00035443,2]
[426546721,1782577845000,-151.0,0.00035205,2]
[426546697,1782577845000,-151.39114816,0.0003444,2]
[426546755,1782577845000,-308.36370036,0.00035443,2]
[426546757,1782577845000,-313.15863838,0.00035445,2]
[426546791,1782577845000,-461.27713671,0.00036111,2]
[426546787,1782577845000,-438.13760855,0.00036111,2]
[426546793,1782577845000,-451.83260047,0.00036111,2]
[426546790,1782577845000,-412.0948131,0.00036111,2]
[426546792,1782577845000,-474.8079055,0.00036111,2]
[426546798,1782577845000,-190.51794156,0.00036112,2]
[426546802,1782577845000,-510.98521408,0.00036112,2]
[426546804,1782577845000,-467.46649041,0.00036112,2]
[426546801,1782577845000,-484.27740363,0.00036112,2]
[426546799,1782577845000,-601.28388864,0.00036112,2]
[426546807,1782577845000,-588.41488743,0.00036112,2]
[426546803,1782577845000,-457.8657172,0.00036112,2]
[426546808,1782577845000,-463.49531999,0.00036112,2]
[426546795,1782577845000,-454.17344449,0.00036111,2]
[426546806,1782577845000,-452.80461083,0.00036112,2]
[426546805,1782577845000,-417.94666667,0.00036112,2]
[426546811,1782577845000,-462.54555054,0.00036112,2]
[426546810,1782577845000,-503.42485912,0.00036112,2]
[426546809,1782577845000,-488.60743279,0.00036112,2]
[426546813,1782577845000,-469.73795757,0.00036113,2]
[426546824,1782577845000,-455.75265261,0.00036293,2]
[426546812,1782577845000,-440.27853851,0.00036113,2]
[426546823,1782577845000,-303.58205714,0.00036219,30]
[426546825,1782577845000,-1178.60993399,0.00036293,2]
[426546815,1782577845000,-483.67327904,0.00036113,2]
[426546821,1782577845000,-153.41292,0.00036192,2]
[426546759,1782577845000,-354.28985252,0.00035445,2]
[426546819,1782577845000,-158.6972853,0.00036137,2]
[426546800,1782577845000,-556.9069649,0.00036112,2]
[426546794,1782577845000,-493.35589519,0.00036111,2]
[426546817,1782577845000,-531.43477878,0.00036113,2]
[426546788,1782577845000,-584.8332728,0.00036111,2]
[426546789,1782577845000,-538.35381814,0.00036111,2]
[426546772,1782577845000,-151.0,0.00036027,2]
[426546770,1782577845000,-151.0,0.00036027,2]
[426546771,1782577845000,-151.0,0.00036027,2]
[426546762,1782577845000,-666.10304445,0.0003565,120]
[426546760,1782577845000,-151.0,0.00035534,2]
[426546763,1782577845000,-303.58205714,0.00035699,30]
[426546765,1782577845000,-151.0,0.00035726,2]
[426546764,1782577845000,-151.0,0.00035699,2]
[426546767,1782577845000,-303.58205714,0.00035863,30]
[426546766,1782577845000,-151.0,0.00035808,2]
[426546769,1782577845000,-303.58205714,0.00036027,30]
[426546768,1782577845000,-1150.28723172,0.00035963,2]
[426546774,1782577845000,-155.5699529,0.00036103,2]
[426546761,1782577845000,-151.0,0.00035562,2]
[426546776,1782577845000,-340.67696153,0.00036103,2]
[426546777,1782577845000,-170.29100275,0.00036103,2]
[426546796,1782577845000,-157.76705047,0.00036112,2]
[426546797,1782577845000,-434.64815471,0.00036112,2]
[426546786,1782577845000,-2158.67020119,0.00036111,2]
[426546782,1782577845000,-264.63954821,0.00036103,2]
[426546783,1782577845000,-627.31020298,0.00036105,2]
[426546785,1782577845000,-937.35341122,0.00036111,2]
[426546780,1782577845000,-550.17390637,0.00036103,2]
[426546781,1782577845000,-211.38351159,0.00036103,2]
[426546775,1782577845000,-169.80071781,0.00036103,2]
[426546784,1782577845000,-1529.46194118,0.00036111,2]
[426546773,1782577845000,-287.42681194,0.00036103,2]
[426546778,1782577845000,-409.66779063,0.00036103,2]
[426546779,1782577845000,-186.58827774,0.00036103,2]
[426546871,1782577846000,-801.71185151,0.00036557,2]
[426546866,1782577846000,-657.80786026,0.00036557,2]
[426546863,1782577846000,-615.03618227,0.00036557,2]
[426546862,1782577846000,-717.80509085,0.00036557,2]
[426546859,1782577846000,-473.30115141,0.00036557,2]
[426546858,1782577846000,-657.20641283,0.00036557,2]
[426546860,1782577846000,-317.45546973,0.00036557,2]
[426546861,1782577846000,-779.77769707,0.00036557,2]
[426546868,1782577846000,-315.53410094,0.00036557,2]
[426546876,1782577846000,-610.48762294,0.00036557,2]
[426546869,1782577846000,-384.3185332,0.00036557,2]
[426546864,1782577846000,-633.07720734,0.00036557,2]
[426546875,1782577846000,-411.89637145,0.00036557,2]
[426546872,1782577846000,-742.54261987,0.00036557,2]
[426546888,1782577846000,-626.31727676,0.00036559,2]
[426546874,1782577846000,-681.31361878,0.00036557,2]
[426546882,1782577846000,-308.62901606,0.00036557,2]
[426546873,1782577846000,-726.41610545,0.00036557,2]
[426546877,1782577846000,-208.97333333,0.00036557,2]
[426546879,1782577846000,-603.73948111,0.00036557,2]
[426546878,1782577846000,-623.28865388,0.00036557,2]
[426546880,1782577846000,-784.55318324,0.00036557,2]
[426546883,1782577846000,-651.47657705,0.00036557,2]
[426546886,1782577846000,-180.31485956,0.00036558,2]
[426546891,1782577846000,-151.0,0.00036685,2]
[426546867,1782577846000,-605.56459265,0.00036557,2]
[426546881,1782577846000,-617.99375999,0.00036557,2]
[426546865,1782577846000,-602.44346729,0.00036557,2]
[426546833,1782577846000,-14124.57133854,0.00036533,2]
[426546852,1782577846000,-38000.0,0.00036549,15]
[426546827,1782577846000,-303.58205714,0.00036384,30]
[426546826,1782577846000,-151.0,0.00036301,2]
[426546828,1782577846000,-181.148048,0.00036385,2]
[426546830,1782577846000,-151.0,0.00036466,2]
[426546832,1782577846000,-158.98494075,0.00036527,2]
[426546834,1782577846000,-303.58205714,0.00036548,30]
[426546835,1782577846000,-574.85362387,0.00036548,2]
[426546836,1782577846000,-311.13990579,0.00036548,2]
[426546837,1782577846000,-339.60143561,0.00036548,2]
[426546843,1782577846000,-10114.85897469,0.00036549,5]
[426546841,1782577846000,-384.06821753,0.00036548,2]
[426546838,1782577846000,-170.33848076,0.00036548,2]
[426546840,1782577846000,-614.50168594,0.00036548,2]
[426546839,1782577846000,-340.58200551,0.00036548,2]
[426546842,1782577846000,-157.65362288,0.00036548,2]
[426546845,1782577846000,-366.78260425,0.00036549,2]
[426546847,1782577846000,-407.62164178,0.00036549,2]
[426546844,1782577846000,-373.17655548,0.00036549,2]
[426546855,1782577846000,-1249.80454829,0.00036557,2]
[426546856,1782577846000,-325.57988905,0.00036557,2]
[426546848,1782577846000,-529.27909643,0.00036549,2]